[Event "Early-Titled-Tuesday-Blitz-November-28-2023"]
[Site "Chess.com"]
[Date "2023.11.28"]
[Round "1"]
[White "losersgame"]
[Black "Politov_Pavel"]
[Result "1-0"]
[WhiteElo "2547"]
[BlackElo "2113"]
[TimeControl "180+1"]
[EndTime "8:06:33 PST"]
[Termination "losersgame won on time"]

1. e4 {[%clk 0:02:58.5]} 1... c5 {[%clk 0:02:59.4]} 2. Nc3 {[%clk 0:02:55]} 2...
d6 {[%clk 0:02:58.6]} 3. g3 {[%clk 0:02:52]} 3... Nc6 {[%clk 0:02:53.6]} 4. Bg2
{[%clk 0:02:51.2]} 4... g6 {[%clk 0:02:53.5]} 5. d3 {[%clk 0:02:50.8]} 5... Bg7
{[%clk 0:02:53.4]} 6. f4 {[%clk 0:02:45.9]} 6... e5 {[%clk 0:02:30.5]} 7. Nh3
{[%clk 0:02:40.2]} 7... h5 {[%clk 0:02:13.3]} 8. O-O {[%clk 0:02:36.1]} 8... Bg4
{[%clk 0:01:58.5]} 9. Qd2 {[%clk 0:02:28.7]} 9... h4 {[%clk 0:01:31.6]} 10. Nf2
{[%clk 0:02:20.5]} 10... Be6 {[%clk 0:01:13.5]} 11. Nd5 {[%clk 0:02:04]} 11...
hxg3 {[%clk 0:01:08.5]} 12. hxg3 {[%clk 0:02:03.3]} 12... exf4 {[%clk
0:00:43.8]} 13. Nxf4 {[%clk 0:01:56.4]} 13... Be5 {[%clk 0:00:18.3]} 14. c3
{[%clk 0:01:54.7]} 14... Bd7 {[%clk 0:00:13.1]} 15. Qe2 {[%clk 0:01:50.1]} 15...
Qg5 {[%clk 0:00:08.9]} 16. Qf3 {[%clk 0:01:36]} 16... Bg4 {[%clk 0:00:07.9]} 17.
Qxg4 {[%clk 0:01:34.5]} 17... Qxg4 {[%clk 0:00:08]} 18. Nxg4 {[%clk 0:01:34.7]}
18... Bxf4 {[%clk 0:00:07.7]} 19. Bxf4 {[%clk 0:01:34.2]} 19... O-O-O {[%clk
0:00:07.1]} 20. a3 {[%clk 0:01:28.4]} 20... f5 {[%clk 0:00:05.4]} 21. exf5
{[%clk 0:01:27.5]} 21... gxf5 {[%clk 0:00:06]} 22. Ne3 {[%clk 0:01:26.5]} 22...
Nf6 {[%clk 0:00:06.6]} 23. b4 {[%clk 0:01:24.8]} 23... cxb4 {[%clk 0:00:05.9]}
24. axb4 {[%clk 0:01:24.6]} 24... d5 {[%clk 0:00:05.4]} 25. b5 {[%clk
0:01:22.4]} 25... Ne7 {[%clk 0:00:04.9]} 26. Rxa7 {[%clk 0:01:22.1]} 26... Ng4
{[%clk 0:00:02.3]} 27. Nxg4 {[%clk 0:01:18.5]} 27... fxg4 {[%clk 0:00:03.2]} 28.
Bg5 {[%clk 0:01:13.1]} 28... Rhe8 {[%clk 0:00:01.9]} 29. c4 {[%clk 0:01:11.1]}
29... Kd7 {[%clk 0:00:01.8]} 30. Rxb7+ {[%clk 0:01:09.9]} 30... Kd6 {[%clk
0:00:02.7]} 31. Bxd5 {[%clk 0:00:56.3]} 31... Nxd5 {[%clk 0:00:02.1]} 32. Bxd8
{[%clk 0:00:55.5]} 32... Ne3 {[%clk 0:00:00.1]} 33. Bc7+ {[%clk 0:00:53.6]} 1-0

[Event "Early-Titled-Tuesday-Blitz-November-28-2023"]
[Site "Chess.com"]
[Date "2023.11.28"]
[Round "1"]
[White "JoliyRoger"]
[Black "vugarrasulov"]
[Result "0-1"]
[WhiteElo "2500"]
[BlackElo "2919"]
[TimeControl "180+1"]
[EndTime "8:06:36 PST"]
[Termination "vugarrasulov won by resignation"]

1. d4 {[%clk 0:02:57.2]} 1... Nf6 {[%clk 0:02:55.1]} 2. c4 {[%clk 0:02:57.5]}
2... e6 {[%clk 0:02:55.4]} 3. Nc3 {[%clk 0:02:57.9]} 3... c5 {[%clk 0:02:55.9]}
4. e3 {[%clk 0:02:51.4]} 4... cxd4 {[%clk 0:02:54.7]} 5. exd4 {[%clk 0:02:51.4]}
5... d5 {[%clk 0:02:54.2]} 6. Nf3 {[%clk 0:02:51.9]} 6... Nc6 {[%clk 0:02:53.6]}
7. cxd5 {[%clk 0:02:44.7]} 7... Nxd5 {[%clk 0:02:53.2]} 8. Bc4 {[%clk
0:02:45.3]} 8... Be7 {[%clk 0:02:51.1]} 9. O-O {[%clk 0:02:44.6]} 9... O-O
{[%clk 0:02:50.9]} 10. Nxd5 {[%clk 0:02:09.2]} 10... exd5 {[%clk 0:02:51.8]} 11.
Bb5 {[%clk 0:02:09.7]} 11... Bg4 {[%clk 0:02:50.4]} 12. Bxc6 {[%clk 0:02:08.8]}
12... bxc6 {[%clk 0:02:51.3]} 13. h3 {[%clk 0:02:09.1]} 13... Bh5 {[%clk
0:02:49.4]} 14. Qd3 {[%clk 0:02:04.5]} 14... Bd6 {[%clk 0:02:46.6]} 15. Ne5
{[%clk 0:01:48.9]} 15... c5 {[%clk 0:02:42.6]} 16. Be3 {[%clk 0:01:42.1]} 16...
c4 {[%clk 0:02:39.9]} 17. Qd2 {[%clk 0:01:38.2]} 17... f6 {[%clk 0:02:35.9]} 18.
Ng4 {[%clk 0:01:36.3]} 18... Rb8 {[%clk 0:02:33.1]} 19. b3 {[%clk 0:01:26.7]}
19... Bg6 {[%clk 0:02:25.4]} 20. Bf4 {[%clk 0:01:14.3]} 20... c3 {[%clk
0:02:20.4]} 21. Qc1 {[%clk 0:01:06.8]} 21... Rc8 {[%clk 0:02:20.2]} 22. Bxd6
{[%clk 0:01:06.3]} 22... Qxd6 {[%clk 0:02:21.1]} 23. Re1 {[%clk 0:01:01.1]}
23... h5 {[%clk 0:02:14.4]} 24. Nh2 {[%clk 0:00:54.2]} 24... Be4 {[%clk
0:02:12.6]} 25. f3 {[%clk 0:00:49.8]} 25... Bg6 {[%clk 0:02:12.2]} 26. Nf1
{[%clk 0:00:50]} 26... Qb4 {[%clk 0:02:10]} 27. Qf4 {[%clk 0:00:49.9]} 27... c2
{[%clk 0:02:09.5]} 28. Rec1 {[%clk 0:00:46.1]} 28... Rfe8 {[%clk 0:02:08.3]} 29.
Kf2 {[%clk 0:00:24.4]} 29... Qc3 {[%clk 0:02:06.9]} 30. Qd2 {[%clk 0:00:23.2]}
30... Qxd2+ {[%clk 0:02:02.4]} 31. Nxd2 {[%clk 0:00:23.6]} 31... Bd3 {[%clk
0:02:03.3]} 32. Nf1 {[%clk 0:00:19.1]} 32... Re2+ {[%clk 0:02:01.7]} 33. Kg1
{[%clk 0:00:17.5]} 33... h4 {[%clk 0:02:02.2]} 34. Nh2 {[%clk 0:00:16.3]} 34...
f5 {[%clk 0:02:01.9]} 35. f4 {[%clk 0:00:16.2]} 35... Be4 {[%clk 0:02:02.2]} 36.
Nf3 {[%clk 0:00:16.2]} 36... Bxf3 {[%clk 0:02:02.6]} 37. gxf3 {[%clk 0:00:16.9]}
37... Rc3 {[%clk 0:02:03.3]} 38. Kf1 {[%clk 0:00:15.2]} 38... Rh2 {[%clk
0:02:01.8]} 39. Kg1 {[%clk 0:00:15.6]} 39... Rxh3 {[%clk 0:02:02.2]} 40. Rf1
{[%clk 0:00:13.8]} 40... Rg3+ {[%clk 0:02:00.2]} 41. Kh2 {[%clk 0:00:13.6]}
41... Kf7 {[%clk 0:02:00.3]} 42. Rac1 {[%clk 0:00:13.1]} 42... Ke6 {[%clk
0:02:00.3]} 43. Rf2 {[%clk 0:00:13.7]} 43... Kf6 {[%clk 0:02:00.3]} 44. Rcxc2
{[%clk 0:00:13.7]} 44... Rgxf3 {[%clk 0:01:57.4]} 45. Rxc3 {[%clk 0:00:11.7]}
45... Rxc3 {[%clk 0:01:52.4]} 46. Rb2 {[%clk 0:00:09.5]} 46... Rf3 {[%clk
0:01:51.3]} 47. b4 {[%clk 0:00:10]} 47... Rxf4 {[%clk 0:01:51.6]} 48. a4 {[%clk
0:00:10.6]} 48... Rxd4 {[%clk 0:01:51.6]} 49. a5 {[%clk 0:00:11.1]} 49... a6
{[%clk 0:01:49.8]} 50. b5 {[%clk 0:00:10.7]} 50... axb5 {[%clk 0:01:49.9]} 51.
Ra2 {[%clk 0:00:11.2]} 51... Rc4 {[%clk 0:01:49.9]} 52. a6 {[%clk 0:00:11.6]}
52... Rc8 {[%clk 0:01:50.6]} 53. Ra5 {[%clk 0:00:11.5]} 53... Ra8 {[%clk
0:01:49.6]} 54. a7 {[%clk 0:00:11.1]} 54... b4 {[%clk 0:01:49.8]} 55. Ra6+
{[%clk 0:00:11.1]} 55... Ke5 {[%clk 0:01:49.1]} 56. Kh3 {[%clk 0:00:11.3]} 56...
g5 {[%clk 0:01:49.1]} 57. Kg2 {[%clk 0:00:11.3]} 57... g4 {[%clk 0:01:48.9]} 58.
Kf2 {[%clk 0:00:11.6]} 58... d4 {[%clk 0:01:49.2]} 59. Ke2 {[%clk 0:00:12.1]}
59... h3 {[%clk 0:01:48.9]} 60. Kd3 {[%clk 0:00:10.9]} 60... h2 {[%clk
0:01:48.8]} 0-1

[Event "Early-Titled-Tuesday-Blitz-November-28-2023"]
[Site "Chess.com"]
[Date "2023.11.28"]
[Round "1"]
[White "koncheto"]
[Black "deepfear"]
[Result "1-0"]
[WhiteElo "2532"]
[BlackElo "1906"]
[TimeControl "180+1"]
[EndTime "8:06:37 PST"]
[Termination "koncheto won on time"]

1. e4 {[%clk 0:03:00.9]} 1... c5 {[%clk 0:02:46.4]} 2. Nf3 {[%clk 0:02:58]} 2...
g6 {[%clk 0:02:45.5]} 3. d4 {[%clk 0:02:58.9]} 3... cxd4 {[%clk 0:02:45.7]} 4.
Nxd4 {[%clk 0:02:59.8]} 4... Bg7 {[%clk 0:02:46]} 5. c4 {[%clk 0:02:59.3]} 5...
Nc6 {[%clk 0:02:44.5]} 6. Be3 {[%clk 0:02:59.1]} 6... Nf6 {[%clk 0:02:44.1]} 7.
Nc3 {[%clk 0:02:58.5]} 7... O-O {[%clk 0:02:44.4]} 8. Be2 {[%clk 0:02:52.4]}
8... d6 {[%clk 0:02:44.3]} 9. O-O {[%clk 0:02:52.5]} 9... Bd7 {[%clk 0:02:44.9]}
10. Qd2 {[%clk 0:02:52.8]} 10... Nxd4 {[%clk 0:02:44.2]} 11. Bxd4 {[%clk
0:02:52.6]} 11... Bc6 {[%clk 0:02:44.4]} 12. f3 {[%clk 0:02:52.7]} 12... Nd7
{[%clk 0:02:32.2]} 13. Be3 {[%clk 0:02:51.2]} 13... a5 {[%clk 0:02:31.5]} 14.
Rac1 {[%clk 0:02:51.2]} 14... a4 {[%clk 0:02:30.2]} 15. Rc2 {[%clk 0:02:47.7]}
15... Qa5 {[%clk 0:02:17.3]} 16. Rb1 {[%clk 0:02:44.8]} 16... Nc5 {[%clk
0:01:49.7]} 17. b4 {[%clk 0:02:44.6]} 17... axb3 {[%clk 0:01:49.4]} 18. axb3
{[%clk 0:02:45.5]} 18... Qc7 {[%clk 0:00:49.4]} 19. Nd5 {[%clk 0:02:36.8]} 19...
Bxd5 {[%clk 0:00:42.2]} 20. cxd5 {[%clk 0:02:37.2]} 20... Qd7 {[%clk 0:00:33.4]}
21. Bxc5 {[%clk 0:02:22.1]} 21... dxc5 {[%clk 0:00:32.8]} 22. Rxc5 {[%clk
0:02:23]} 22... Ra7 {[%clk 0:00:20]} 23. Rbc1 {[%clk 0:02:18.9]} 23... Rfa8
{[%clk 0:00:20.2]} 24. Bb5 {[%clk 0:02:17.2]} 24... Qd8 {[%clk 0:00:19.2]} 25.
g3 {[%clk 0:02:09.7]} 25... Qb6 {[%clk 0:00:19.1]} 26. Kg2 {[%clk 0:02:07.4]}
26... Bf6 {[%clk 0:00:18.1]} 27. f4 {[%clk 0:02:03.6]} 27... Ra2 {[%clk
0:00:18.2]} 28. R1c2 {[%clk 0:02:02.2]} 28... Rxc2 {[%clk 0:00:17.3]} 29. Qxc2
{[%clk 0:02:03.1]} 29... Ra3 {[%clk 0:00:17]} 30. e5 {[%clk 0:02:01.3]} 30...
Bh8 {[%clk 0:00:15.1]} 31. Rc8+ {[%clk 0:01:29.8]} 31... Kg7 {[%clk 0:00:15.3]}
32. Bc4 {[%clk 0:01:28.2]} 32... Qa7 {[%clk 0:00:07.2]} 33. Be2 {[%clk
0:01:24.9]} 33... Ra2 {[%clk 0:00:07.1]} 34. Qd3 {[%clk 0:01:17.9]} 34... Rb2
{[%clk 0:00:05.7]} 35. d6 {[%clk 0:01:13]} 35... exd6 {[%clk 0:00:05.2]} 36.
exd6 {[%clk 0:01:13.9]} 36... Qa2 {[%clk 0:00:05.4]} 37. Kf1 {[%clk 0:01:05.3]}
37... Qa1+ {[%clk 0:00:03.6]} 38. Kf2 {[%clk 0:01:03.9]} 38... Qa2 {[%clk
0:00:04.1]} 39. d7 {[%clk 0:01:02.5]} 39... Rd2 {[%clk 0:00:02.8]} 40. d8=Q
{[%clk 0:01:00.1]} 1-0

[Event "Early-Titled-Tuesday-Blitz-November-28-2023"]
[Site "Chess.com"]
[Date "2023.11.28"]
[Round "1"]
[White "Chessbard1972"]
[Black "atbenina64"]
[Result "0-1"]
[WhiteElo "2432"]
[BlackElo "2778"]
[TimeControl "180+1"]
[EndTime "8:06:39 PST"]
[Termination "atbenina64 won by resignation"]

1. e4 {[%clk 0:03:00.9]} 1... c5 {[%clk 0:02:55.8]} 2. Nf3 {[%clk 0:02:59.5]}
2... d6 {[%clk 0:02:56.4]} 3. Bb5+ {[%clk 0:02:58.8]} 3... Bd7 {[%clk
0:02:54.1]} 4. Bxd7+ {[%clk 0:02:58.4]} 4... Nxd7 {[%clk 0:02:55]} 5. c4 {[%clk
0:02:57.5]} 5... e6 {[%clk 0:02:50.6]} 6. d4 {[%clk 0:02:55.7]} 6... cxd4 {[%clk
0:02:50.9]} 7. Nxd4 {[%clk 0:02:55.9]} 7... Ngf6 {[%clk 0:02:38.2]} 8. f3 {[%clk
0:02:54.6]} 8... Rc8 {[%clk 0:02:25.5]} 9. b3 {[%clk 0:02:53.6]} 9... d5 {[%clk
0:02:23.3]} 10. cxd5 {[%clk 0:02:45.5]} 10... exd5 {[%clk 0:02:08.5]} 11. exd5
{[%clk 0:02:45.2]} 11... Rxc1 {[%clk 0:01:56.4]} 12. Qxc1 {[%clk 0:02:44.3]}
12... Bb4+ {[%clk 0:01:56.5]} 13. Kf2 {[%clk 0:02:37.5]} 13... O-O {[%clk
0:01:52.7]} 14. Nc3 {[%clk 0:02:26.9]} 14... Qb6 {[%clk 0:01:31.2]} 15. Ne2
{[%clk 0:02:24.9]} 15... Nxd5 {[%clk 0:01:13]} 16. Rd1 {[%clk 0:02:20.4]} 16...
Re8 {[%clk 0:01:05.4]} 17. Qc4 {[%clk 0:02:00.8]} 17... Ne3 {[%clk 0:01:00.3]}
18. Qd3 {[%clk 0:01:53.4]} 18... Nxd1+ {[%clk 0:00:50]} 19. Rxd1 {[%clk
0:01:52.6]} 19... Bc5 {[%clk 0:00:46.3]} 20. Kf1 {[%clk 0:01:47.8]} 20... Nf6
{[%clk 0:00:33.4]} 21. Nf5 {[%clk 0:01:36.5]} 21... g6 {[%clk 0:00:33.8]} 22.
Nh6+ {[%clk 0:01:24.7]} 22... Kg7 {[%clk 0:00:34.1]} 23. Ng4 {[%clk 0:01:21.6]}
23... Nxg4 {[%clk 0:00:34.5]} 24. fxg4 {[%clk 0:01:21.8]} 24... Re3 {[%clk
0:00:30]} 25. Qd8 {[%clk 0:01:10]} 25... Qe6 {[%clk 0:00:21.8]} 26. Qd5 {[%clk
0:00:52.4]} 26... Qf6+ {[%clk 0:00:19.4]} 27. Ke1 {[%clk 0:00:45.3]} 27... Bb4+
{[%clk 0:00:18.9]} 28. Rd2 {[%clk 0:00:45.8]} 28... Qe7 {[%clk 0:00:12.7]} 29.
Qd4+ {[%clk 0:00:43.2]} 29... f6 {[%clk 0:00:12.5]} 30. Kd1 {[%clk 0:00:39.7]}
30... Bxd2 {[%clk 0:00:12.7]} 31. Qxd2 {[%clk 0:00:38.5]} 31... Re6 {[%clk
0:00:13.3]} 32. Kc2 {[%clk 0:00:36.2]} 32... Rxe2 {[%clk 0:00:13.3]} 0-1

[Event "Early-Titled-Tuesday-Blitz-November-28-2023"]
[Site "Chess.com"]
[Date "2023.11.28"]
[Round "1"]
[White "Orest_Vovk"]
[Black "RebecaJimnz"]
[Result "0-1"]
[WhiteElo "2590"]
[BlackElo "2293"]
[TimeControl "180+1"]
[EndTime "8:06:39 PST"]
[Termination "RebecaJimnz won by checkmate"]

1. e4 {[%clk 0:02:51.1]} 1... c5 {[%clk 0:02:59.6]} 2. Nf3 {[%clk 0:02:50.7]}
2... Nc6 {[%clk 0:03:00.3]} 3. Bb5 {[%clk 0:02:50.2]} 3... g6 {[%clk 0:03:00]}
4. a4 {[%clk 0:02:49.9]} 4... Bg7 {[%clk 0:03:00]} 5. O-O {[%clk 0:02:50.1]}
5... Nf6 {[%clk 0:02:59.9]} 6. Nc3 {[%clk 0:02:45.3]} 6... O-O {[%clk
0:02:58.9]} 7. h3 {[%clk 0:02:42.7]} 7... d6 {[%clk 0:02:50.5]} 8. Re1 {[%clk
0:02:42.1]} 8... e5 {[%clk 0:02:50.2]} 9. d3 {[%clk 0:02:40.7]} 9... h6 {[%clk
0:02:48.9]} 10. Bxc6 {[%clk 0:02:35.9]} 10... bxc6 {[%clk 0:02:48.9]} 11. Be3
{[%clk 0:02:36.3]} 11... Be6 {[%clk 0:02:49.6]} 12. Qd2 {[%clk 0:02:36.5]} 12...
Kh7 {[%clk 0:02:50]} 13. a5 {[%clk 0:02:36.6]} 13... Rb8 {[%clk 0:02:49.7]} 14.
b3 {[%clk 0:02:36.3]} 14... Qd7 {[%clk 0:02:48.7]} 15. Ne2 {[%clk 0:02:15.7]}
15... Ne8 {[%clk 0:02:34.7]} 16. Ng3 {[%clk 0:02:14.6]} 16... f5 {[%clk
0:02:34.1]} 17. exf5 {[%clk 0:02:12.1]} 17... gxf5 {[%clk 0:02:35]} 18. Bg5
{[%clk 0:01:31.4]} 18... hxg5 {[%clk 0:02:00.1]} 19. Nxg5+ {[%clk 0:01:31]}
19... Kg8 {[%clk 0:01:58.9]} 20. f4 {[%clk 0:01:30.1]} 20... Nf6 {[%clk
0:01:30.4]} 21. fxe5 {[%clk 0:01:25.6]} 21... dxe5 {[%clk 0:01:30.9]} 22. Rxe5
{[%clk 0:01:25.3]} 22... Ne4 {[%clk 0:01:23.7]} 23. Rxe4 {[%clk 0:00:40.9]}
23... fxe4 {[%clk 0:01:23.6]} 24. Re1 {[%clk 0:00:38.8]} 24... Rbe8 {[%clk
0:01:12.8]} 25. Rxe4 {[%clk 0:00:35.4]} 25... Bd5 {[%clk 0:01:11.2]} 26. Rg4
{[%clk 0:00:30.2]} 26... Qe7 {[%clk 0:01:01.1]} 27. Kh2 {[%clk 0:00:11.4]} 27...
Qe3 {[%clk 0:00:53.2]} 28. Qd1 {[%clk 0:00:08.8]} 28... Qf2 {[%clk 0:00:48.5]}
29. Nh5 {[%clk 0:00:03.6]} 29... Be5+ {[%clk 0:00:36.8]} 30. Kh1 {[%clk
0:00:03.3]} 30... Qf1+ {[%clk 0:00:36.4]} 31. Qxf1 {[%clk 0:00:02.9]} 31...
Rxf1# {[%clk 0:00:37.3]} 0-1

[Event "Early-Titled-Tuesday-Blitz-November-28-2023"]
[Site "Chess.com"]
[Date "2023.11.28"]
[Round "1"]
[White "AnaKuchava"]
[Black "Predator0608"]
[Result "0-1"]
[WhiteElo "2240"]
[BlackElo "2587"]
[TimeControl "180+1"]
[EndTime "8:06:40 PST"]
[Termination "Predator0608 won by checkmate"]

1. d4 {[%clk 0:02:59.5]} 1... d5 {[%clk 0:02:59.5]} 2. Nf3 {[%clk 0:02:57]} 2...
Nf6 {[%clk 0:02:59]} 3. c4 {[%clk 0:02:54.1]} 3... e6 {[%clk 0:02:57.9]} 4. Nc3
{[%clk 0:02:51.1]} 4... Be7 {[%clk 0:02:57.5]} 5. Bf4 {[%clk 0:02:50]} 5... O-O
{[%clk 0:02:54.5]} 6. e3 {[%clk 0:02:49.5]} 6... b6 {[%clk 0:02:51.6]} 7. cxd5
{[%clk 0:02:38.8]} 7... Nxd5 {[%clk 0:02:50]} 8. Bg3 {[%clk 0:02:35.7]} 8... Bb7
{[%clk 0:02:46.4]} 9. Bd3 {[%clk 0:02:29.7]} 9... Nd7 {[%clk 0:02:41.7]} 10. O-O
{[%clk 0:02:28.9]} 10... c5 {[%clk 0:02:41.3]} 11. e4 {[%clk 0:02:27.6]} 11...
Nxc3 {[%clk 0:02:32.6]} 12. bxc3 {[%clk 0:02:28.5]} 12... cxd4 {[%clk
0:02:33.5]} 13. cxd4 {[%clk 0:02:28.5]} 13... Nf6 {[%clk 0:02:34.2]} 14. Qe2
{[%clk 0:02:26.4]} 14... Rc8 {[%clk 0:02:29.5]} 15. Rac1 {[%clk 0:02:14.3]}
15... Bb4 {[%clk 0:02:15.2]} 16. Rfd1 {[%clk 0:01:56.4]} 16... Nh5 {[%clk
0:01:58.5]} 17. Ba6 {[%clk 0:01:49.2]} 17... Nxg3 {[%clk 0:01:55.9]} 18. hxg3
{[%clk 0:01:46.9]} 18... Qe7 {[%clk 0:01:47.1]} 19. Ne5 {[%clk 0:01:37.8]} 19...
Ba3 {[%clk 0:01:08.6]} 20. Rxc8 {[%clk 0:00:50.5]} 20... Rxc8 {[%clk 0:01:08]}
21. Bxb7 {[%clk 0:00:36.4]} 21... Qxb7 {[%clk 0:01:07.4]} 22. d5 {[%clk
0:00:37]} 22... exd5 {[%clk 0:01:01]} 23. exd5 {[%clk 0:00:37.9]} 23... Bd6
{[%clk 0:00:46.4]} 24. Nc6 {[%clk 0:00:35.7]} 24... h6 {[%clk 0:00:46.3]} 25.
Re1 {[%clk 0:00:29.2]} 25... Qd7 {[%clk 0:00:43.3]} 26. Qa6 {[%clk 0:00:27.4]}
26... Bc5 {[%clk 0:00:37.5]} 27. Qxa7 {[%clk 0:00:13]} 27... Qxd5 {[%clk
0:00:36]} 28. Ne7+ {[%clk 0:00:11.3]} 28... Bxe7 {[%clk 0:00:35.8]} 29. Rxe7
{[%clk 0:00:10.9]} 29... Rc1+ {[%clk 0:00:34.3]} 30. Kh2 {[%clk 0:00:11.2]}
30... Qh5# {[%clk 0:00:34.5]} 0-1

[Event "Early-Titled-Tuesday-Blitz-November-28-2023"]
[Site "Chess.com"]
[Date "2023.11.28"]
[Round "1"]
[White "M1711"]
[Black "Willi_Skibbe"]
[Result "1-0"]
[WhiteElo "2601"]
[BlackElo "2266"]
[TimeControl "180+1"]
[EndTime "8:06:42 PST"]
[Termination "M1711 won on time"]

1. e4 {[%clk 0:03:00.9]} 1... e6 {[%clk 0:02:53.4]} 2. d4 {[%clk 0:03:00.6]}
2... d5 {[%clk 0:02:51.2]} 3. Nc3 {[%clk 0:03:00.9]} 3... Nf6 {[%clk 0:02:46.5]}
4. e5 {[%clk 0:03:00.1]} 4... Nfd7 {[%clk 0:02:45.7]} 5. Nce2 {[%clk 0:03:00.5]}
5... c5 {[%clk 0:02:43.9]} 6. c3 {[%clk 0:03:00.7]} 6... Nc6 {[%clk 0:02:43.9]}
7. Nf3 {[%clk 0:03:01]} 7... b5 {[%clk 0:02:41.3]} 8. g3 {[%clk 0:02:52.6]} 8...
b4 {[%clk 0:02:37.6]} 9. Bh3 {[%clk 0:02:51.3]} 9... Be7 {[%clk 0:02:32.1]} 10.
O-O {[%clk 0:02:50.6]} 10... O-O {[%clk 0:02:27.3]} 11. Be3 {[%clk 0:02:47.6]}
11... Qb6 {[%clk 0:02:23.1]} 12. Rc1 {[%clk 0:02:14.3]} 12... Ba6 {[%clk
0:02:11.1]} 13. Re1 {[%clk 0:02:09.3]} 13... Na5 {[%clk 0:02:08.3]} 14. b3
{[%clk 0:02:06.7]} 14... Bxe2 {[%clk 0:02:00.6]} 15. Rxe2 {[%clk 0:02:03.8]}
15... c4 {[%clk 0:01:55.1]} 16. cxb4 {[%clk 0:01:54.2]} 16... Qxb4 {[%clk
0:01:46.9]} 17. Bd2 {[%clk 0:01:52]} 17... Qb5 {[%clk 0:01:44]} 18. Bxa5 {[%clk
0:01:31.7]} 18... Qxa5 {[%clk 0:01:44]} 19. bxc4 {[%clk 0:01:32.6]} 19... dxc4
{[%clk 0:01:43.6]} 20. Rxc4 {[%clk 0:01:25.4]} 20... Qd5 {[%clk 0:01:40.6]} 21.
Rec2 {[%clk 0:01:12]} 21... Nb6 {[%clk 0:01:35.2]} 22. Rc7 {[%clk 0:01:11.2]}
22... Bb4 {[%clk 0:00:42.5]} 23. Bg2 {[%clk 0:01:03.8]} 23... Qa5 {[%clk
0:00:26.6]} 24. Ng5 {[%clk 0:00:59.4]} 24... Nd5 {[%clk 0:00:13.7]} 25. Qh5
{[%clk 0:00:52.3]} 25... h6 {[%clk 0:00:13.9]} 26. Bxd5 {[%clk 0:00:37.6]} 26...
exd5 {[%clk 0:00:11.2]} 27. Nxf7 {[%clk 0:00:37.7]} 27... Qa6 {[%clk 0:00:03.1]}
28. R2c6 {[%clk 0:00:34.8]} 28... Qd3 {[%clk 0:00:02]} 29. Nxh6+ {[%clk
0:00:32.9]} 1-0

[Event "Early-Titled-Tuesday-Blitz-November-28-2023"]
[Site "Chess.com"]
[Date "2023.11.28"]
[Round "1"]
[White "NowInChess"]
[Black "ThePeacefulPanda"]
[Result "0-1"]
[WhiteElo "2165"]
[BlackElo "2553"]
[TimeControl "180+1"]
[EndTime "8:06:42 PST"]
[Termination "ThePeacefulPanda won on time"]

1. e4 {[%clk 0:03:00.9]} 1... e5 {[%clk 0:02:59.7]} 2. Nf3 {[%clk 0:03:00]} 2...
Nc6 {[%clk 0:02:59.9]} 3. d4 {[%clk 0:03:00.3]} 3... exd4 {[%clk 0:03:00]} 4.
Bc4 {[%clk 0:03:00.9]} 4... d6 {[%clk 0:02:47.7]} 5. Nxd4 {[%clk 0:02:54.4]}
5... Nf6 {[%clk 0:02:44.4]} 6. Nc3 {[%clk 0:02:53.9]} 6... Be7 {[%clk
0:02:44.1]} 7. O-O {[%clk 0:02:52.6]} 7... O-O {[%clk 0:02:44.2]} 8. Nxc6 {[%clk
0:02:51.9]} 8... bxc6 {[%clk 0:02:44.1]} 9. Bf4 {[%clk 0:02:51.9]} 9... Nd7
{[%clk 0:02:42.9]} 10. Re1 {[%clk 0:02:35.5]} 10... Bf6 {[%clk 0:02:39.2]} 11.
Qd2 {[%clk 0:02:32.4]} 11... Be5 {[%clk 0:02:37.7]} 12. Rad1 {[%clk 0:02:25.6]}
12... Qf6 {[%clk 0:02:32.2]} 13. Bg5 {[%clk 0:01:45.8]} 13... Bxc3 {[%clk
0:02:21.5]} 14. bxc3 {[%clk 0:01:39.4]} 14... Qe5 {[%clk 0:02:13.8]} 15. Bf1
{[%clk 0:01:21.9]} 15... Nb6 {[%clk 0:02:05.5]} 16. Be3 {[%clk 0:01:15.1]} 16...
f6 {[%clk 0:02:00.6]} 17. f4 {[%clk 0:01:11.9]} 17... Qe7 {[%clk 0:01:58.6]} 18.
g3 {[%clk 0:01:01.6]} 18... Be6 {[%clk 0:01:22.3]} 19. a3 {[%clk 0:00:36.5]}
19... Nc4 {[%clk 0:01:16.6]} 20. Bxc4 {[%clk 0:00:34.3]} 20... Bxc4 {[%clk
0:01:17.5]} 21. Bd4 {[%clk 0:00:32.3]} 21... c5 {[%clk 0:01:14.7]} 22. Bf2
{[%clk 0:00:28.3]} 22... Qf7 {[%clk 0:00:57.4]} 23. Rb1 {[%clk 0:00:19.6]} 23...
Rab8 {[%clk 0:00:55.8]} 24. Qe3 {[%clk 0:00:08.9]} 24... Rb6 {[%clk 0:00:51.5]}
25. e5 {[%clk 0:00:08.2]} 25... fxe5 {[%clk 0:00:28.8]} 26. fxe5 {[%clk
0:00:07.6]} 26... Rxb1 {[%clk 0:00:27.9]} 27. Rxb1 {[%clk 0:00:06.7]} 27... dxe5
{[%clk 0:00:28.2]} 28. Rd1 {[%clk 0:00:01.2]} 28... Bd5 {[%clk 0:00:28.4]} 0-1